Cogmind - Beta 14 @@@ ROGUE MODE // 2025.03.12 @ 08:48:36 Player: canerib Result: Destroyed by Y-54 Guardian with Flak Gun Performance ------------- Evolutions (0) 0 Regions Visited (3) 600 Robots Destroyed (22) 110 Value Destroyed (310) 310 Prototype IDs (0) 0 Alien Tech Used (0) 0 Bonus (0) 0 TOTAL SCORE: 1020 Bonus ------- None Cogmind --------- Core Integrity 0/250 Matter 290/300 Energy 140/150 System Corruption 0% Temperature Hot (211) Movement Treading (160) Location -7/Recycling Parts ------- > --- POWER (1) -------- Micro Nuclear Core > --- PROPULSION (2) --- Medium Treads Improved Carbon-fiber Leg > --- UTILITY (2) ------ Medium Storage Unit Reflective Plating > --- WEAPON (2) ------- Light Assault Rifle Mining Laser > --- INVENTORY (10) --- Aluminum Leg Improved Terrain Scanner Seismic Detector Seismic Detector Arc Projector Assault Rifle Light Assault Rifle Grenade Launcher Peak State ------------ > --- POWER ------------ Micro Nuclear Core > --- PROPULSION ------- Medium Treads Improved Carbon-fiber Leg > --- UTILITY ---------- Medium Storage Unit Reflective Plating > --- WEAPON ----------- Assault Rifle Light Assault Rifle > --- INVENTORY -------- Aluminum Leg Improved Terrain Scanner Seismic Detector Seismic Detector Arc Projector Light Assault Rifle Grenade Launcher Mining Laser [Rating: 19] Favorites ----------- Power Light Ion Engine Engine Light Ion Engine Power Core Micro Nuclear Core Propulsion Aluminum Leg Treads Medium Treads Leg Aluminum Leg Utility Medium Storage Unit Device Seismic Detector Storage Medium Storage Unit Protection Reflective Plating Weapon Assault Rifle Energy Gun Medium Laser Ballistic Gun Assault Rifle Launcher Grenade Launcher Special Weapon Mining Laser Build | -11 -10 -10 -7 ------- Run | Yrd Mat Sub Rec Slots Evolved . | . . . . Power . | . . . . Propulsion . | . . . . Utility . | . . . . Weapon . | . . . . Parts Attached 27 | 7 6 8 6 Power 3 | 1 . 1 1 Engine 2 | 1 . 1 . Core 1 | . . . 1 Reactor . | . . . . Propulsion 8 | 2 1 2 3 Treads 1 | . . . 1 Leg 7 | 2 1 2 2 Wheel . | . . . . Hover . | . . . . Flight . | . . . . Utility 5 | 2 1 1 1 Device 1 | 1 . . . Storage 2 | 1 1 . . Processor . | . . . . Hackware . | . . . . Protection 2 | . . 1 1 Artifact . | . . . . Weapon 11 | 2 4 4 1 Energy Gun 1 | 1 . . . Energy Cannon . | . . . . Ballistic Gun 7 | 1 3 3 . Ballistic Cannon . | . . . . Launcher 2 | . 1 1 . Special Weapon 1 | . . . 1 Impact Weapon . | . . . . Slashing Weapon . | . . . . Piercing Weapon . | . . . . Special Melee Weapon . | . . . . Unidentified Prototypes . | . . . . Parts Lost 6 | . . 6 . Power 2 | . . 2 . Propulsion 3 | . . 3 . Utility 1 | . . 1 . Weapon . | . . . . Highest Loss Streak 3 | . . 3 . To Critical Strikes . | . . . . Average Slot Usage (%) 97 | . 100 89 95 Engine 9 | . 14 6 . Core 3 | . . . 13 Treads 2 | . . . 11 Leg 24 | . 28 25 13 Device 9 | . 14 8 . Storage 14 | . 14 14 14 Protection 3 | . . 6 12 Energy Gun 8 | . 14 . . Ballistic Gun 18 | . 13 26 25 Peak Build Rating 19 | 7 8 8 19 Average Rating 9 | 6 7 6 17 On Entrance 4 | . 7 8 4 Naked Turns . | . . . . Heaviest Build 23 | 13 19 19 23 Greatest Support 28 | 20 20 20 28 Greatest Overweight (x) 2 | 2 . 1 1 Average Overweight (x) . | . . . . Largest Inventory Capacity 10 | 8 10 10 10 Average Capacity 9 | 7 9 10 10 Most Carried 10 | 5 9 10 9 Average Carried 7 | 2 8 7 7 Final Capacity 10 | 8 10 10 10 Final Carried 9 | 5 9 6 8 Class Distribution -------------------- 94% | Mutant 5% | Scavenger-Mutant Dominant Class ---------------- Mutant | -10/Materials Mutant | -10/Subcaves Mutant | -7/Recycling Resources | -11 -10 -10 -7 ----------- Run | Yrd Mat Sub Rec Matter Collected 700 | 297 160 77 166 Remotely . | . . . . Salvage Created 461 | 119 288 54 . Parts 43 | 13 22 8 . Haulers Intercepted . | . . . . Recyclers Shooed 2 | . 2 . . Parts Field Recycled . | . . . . Retrieved Matter . | . . . . Parts Self-Destructed 14 | . . 14 . Prevented . | . . . . Kills | -11 -10 -10 -7 ------- Run | Yrd Mat Sub Rec Combat Hostiles Destroyed 14 | . 10 4 . Guns 14 | . 10 4 . Classes Destroyed 6 | 2 3 1 . Tunneler 3 | 3 . . . Recycler 2 | 1 1 . . Turret 2 | . . 2 . Watcher 1 | . 1 . . Swarmer 12 | . 8 4 . Grunt 2 | . 2 . . Best Kill Streak 5 | 4 5 4 . Combat Bots Only 5 | . 5 4 . Max Kills in Single Turn 2 | 1 1 2 . Gunslinging . | . . . . Exploded . | . . . . Melee . | . . . . Uniques/NPCs Destroyed . | . . . . Combat | -11 -10 -10 -7 -------- Run | Yrd Mat Sub Rec Hostile Shots Fired 167 | . 47 111 9 Missed 52 | . 12 39 1 Damage Taken 1165 | . 349 763 53 Core 252 | . 111 131 10 Absorbed by Shields . | . . . . Ignored by Resistances 6 | . . . 6 Core Remaining (%) 100 | 100 . . . Volleys Fired 81 | 9 40 22 10 Largest 2 | 2 2 2 1 Hottest 100 | 70 70 50 100 Shots Fired 152 | 18 80 44 10 Gun 136 | 18 80 38 . Cannon . | . . . . Launcher 6 | . . 6 . Special 10 | . . . 10 Kinetic 87 | 9 40 38 . Thermal 59 | 9 40 . 10 Explosive 6 | . . 6 . Electromagnetic . | . . . . Robot Hit Streak 12 | 4 12 7 . Robot Miss Streak 7 | 2 4 7 . Penetration Max . | . . . . Secondary Targets 3 | . 2 1 . Max Gunslinging Chain 1 | . 1 1 . Shots Hit Robots 83 | 9 52 22 . Core Hits 38 | 5 17 16 . Critical Kills . | . . . . Critical Parts Destroyed 1 | . 1 . . Critical Strikes 2 | . 2 . . Burn 1 | . 1 . . Destroy 1 | . 1 . . Melee Attacks . | . . . . Impact . | . . . . Slashing . | . . . . Piercing . | . . . . Sneak Attacks . | . . . . Combat Hostiles . | . . . . Follow-up Attacks . | . . . . Damage Inflicted 1076 | 115 649 312 . Guns 937 | 115 649 173 . Cannons . | . . . . Explosions 139 | . . 139 . Melee . | . . . . Ramming . | . . . . Kinetic 513 | 39 301 173 . Thermal 424 | 76 348 . . Explosive 139 | . . 139 . Electromagnetic . | . . . . Impact . | . . . . Slashing . | . . . . Piercing . | . . . . Highest Corruption . | . . . . Average Corruption . | . . . . Corruption Purged . | . . . . Corruption Blocked . | . . . . Overload Shots . | . . . . Overflow Damage . | . . . . Projectiles . | . . . . Explosions . | . . . . Melee . | . . . . Knockbacks . | . . . . Impact . | . . . . Kinetic . | . . . . Secondary . | . . . . Self-Inflicted Damage 34 | . . 34 . Shots 1 | . . 1 . Rammed . | . . . . Targets Rammed . | . . . . Kicked . | . . . . Crushed . | . . . . Highest Temperature 202 | 36 126 7 202 Average Temperature 47 | 14 34 6 104 Received Heat Transfer 333 | . 93 222 18 Siege Activations . | . . . . Robots Corrupted . | . . . . Combat Hostiles . | . . . . Parts Fried . | . . . . Impact Corruptions . | . . . . Robots Melted . | . . . . Combat Hostiles . | . . . . Parts Melted 2 | . 2 . . Heat Transferred 1332 | 222 1110 . . Parts Sabotaged . | . . . . Parts Stolen . | . . . . Parts Stripped . | . . . . Power Chain Reactions . | . . . . Alert | -11 -10 -10 -7 ------- Run | Yrd Mat Sub Rec Peak Influence 163 | 20 163 . 100 Initial 84 | . 13 . 84 Average 47 | 11 36 . 88 Maximum Alert Level . | . . . . Low Security (%) 100 | 100 100 . 100 Level 1 . | . . . . Level 2 . | . . . . Level 3 . | . . . . Level 4 . | . . . . Level 5 . | . . . . High Security . | . . . . Max Security . | . . . . Squads Dispatched 2 | . 2 . . Investigation 1 | . 1 . . Extermination . | . . . . Reinforcement 1 | . 1 . . Assault . | . . . . Garrison . | . . . . Intercept . | . . . . Searches Triggered . | . . . . Construction Impeded . | . . . . Haulers Reinforced . | . . . . Active Scanning Responses . | . . . . Cargo Convoy Interrupts . | . . . . Stealth | -11 -10 -10 -7 --------- Run | Yrd Mat Sub Rec Distress Signals 2 | . 2 . . Communications Jammed . | . . . . Distress Signals . | . . . . Times Spotted 29 | . 17 11 1 Peak Tracking Total 5 | . 5 4 2 Tactical Retreats 6 | . 4 2 . Traps | -11 -10 -10 -7 ------- Run | Yrd Mat Sub Rec Traps Triggered . | . . . . Indirectly . | . . . . Trap Hack Attempts . | . . . . Triggered . | . . . . Disarmed . | . . . . Reprogrammed . | . . . . Reused . | . . . . Traps Extracted . | . . . . Installed . | . . . . Triggered . | . . . . Machines | -11 -10 -10 -7 ---------- Run | Yrd Mat Sub Rec Machines Disabled 4 | . . 4 . Max in Single Turn 2 | . . 2 . Machines Repaired . | . . . . Machines Dismantled . | . . . . Machines Sabotaged . | . . . . Overloaded Fab Kills . | . . . . Hacking | -11 -10 -10 -7 --------- Run | Yrd Mat Sub Rec Machines Accessed 8 | . 3 . 5 Terminals 5 | . 3 . 2 Fabricators . | . . . . Repair Stations . | . . . . Recycling Units 3 | . . . 3 Scanalyzers . | . . . . Garrison Access . | . . . . Total Hacks 21 | . 9 . 12 Successful 8 | . 2 . 6 Failed 13 | . 7 . 6 Catastrophic 4 | . 1 . 3 Database Lockouts . | . . . . Manual 6 | . 4 . 2 Terminals 14 | . 9 . 5 Fabricators . | . . . . Repair Stations . | . . . . Recycling Units 7 | . . . 7 Scanalyzers . | . . . . Garrison Access . | . . . . Terminal Hacks 2 | . 2 . . Alert Level 1 | . 1 . . Unreport Threat 1 | . 1 . . Fabricator Hacks . | . . . . Repair Station Hacks . | . . . . Recycling Unit Hacks 5 | . . . 5 Process 1 | . . . 1 Report Inventory 3 | . . . 3 Retrieve Components 1 | . . . 1 Scanalyzer . | . . . . Garrison Access Hacks . | . . . . Unauthorized Hacks 1 | . . . 1 Terminals 1 | . . . 1 Botnet 1 | . . . 1 Fabricators . | . . . . Repair Stations . | . . . . Recycling Units . | . . . . Scanalyzers . | . . . . Garrison Access . | . . . . Data Cores Recovered . | . . . . Used . | . . . . Hacking Detections 8 | . 3 . 5 Full Trace Events 2 | . 2 . . Feedback Events . | . . . . Feedback Blocked . | . . . . Robot Schematics Acquired . | . . . . Robots Built . | . . . . Authchips . | . . . . Time . | . . . . Total Robot Build Rating . | . . . . Part Schematics Acquired . | . . . . Parts Built . | . . . . Authchips . | . . . . Time . | . . . . Total Part Build Rating . | . . . . Parts Repaired . | . . . . Time . | . . . . Parts Recycled . | . . . . Recycled Matter 15 | . . . 15 Retrieved Matter . | . . . . Retrieved Components 3 | . . . 3 Parts Scanalyzed . | . . . . Part Schematics Acquired . | . . . . Parts Damaged . | . . . . Bothacking | -11 -10 -10 -7 ------------ Run | Yrd Mat Sub Rec Used RIF Installer . | . . . . Robots Hacked . | . . . . Non-combat . | . . . . Combat . | . . . . Robot Hacks Applied . | . . . . Relay Couplers Released . | . . . . Fabnet Peak Effective % . | . . . . Robots Rewired . | . . . . Allies Hacked . | . . . . Hacks Repelled . | . . . . Allies | -11 -10 -10 -7 -------- Run | Yrd Mat Sub Rec Total Allies . | . . . . Largest Group . | . . . . Highest-Rated Group . | . . . . Highest-Rated Ally . | . . . . Total Orders . | . . . . Ally Attacks . | . . . . Total Damage . | . . . . Kills . | . . . . Allies Corrupted . | . . . . Allies Melted . | . . . . Intel | -11 -10 -10 -7 ------- Run | Yrd Mat Sub Rec Robot Analysis Total . | . . . . Derelict Logs Recovered . | . . . . Drone Launches . | . . . . Drone Recoveries . | . . . . Exploration | -11 -10 -10 -7 ------------- Run | Yrd Mat Sub Rec Turns Passed 1809 | 114 1084 210 401 Spaces Moved 628 | 63 254 101 210 Core 7 | 7 . . . Treads 163 | . . . 163 Legs 458 | 56 254 101 47 Wheels . | . . . . Hover . | . . . . Flight . | . . . . Fastest Speed 50 | 50 120 120 120 Average Speed 132 | 115 120 131 152 Slowest Speed 190 | 150 120 190 190 Overloaded Moves . | . . . . Propulsion Burnouts . | . . . . Robots Hopped . | . . . . Cave-ins Triggered . | . . . . Exploration Rate (%) 21 | 4 41 8 33 Regions Visited 3 Branch Regions 2 Pre-discovered Areas . | . . . . Known Exits Taken . | . . . . Unknown Exits Taken 3 | 1 1 1 . Scrap Searched . | . . . . Spaces Dug 10 | . . . 10 Terrain Destroyed 22 | . . 12 10 Melee . | . . . . Projectile 10 | . . . 10 AOE 12 | . . 12 . Terrain Rammed . | . . . . Walls Destroyed . | . . . . Machines Disabled . | . . . . Actions | -11 -10 -10 -7 --------- Run | Yrd Mat Sub Rec Total 1432 | 83 951 138 260 Wait 683 | . 645 7 31 Move 625 | 62 253 100 210 Hop . | . . . . Pick Up 10 | 5 4 . 1 Fast Attach 13 | 7 2 . 4 Attach 4 | . . 3 1 Detach 2 | . . . 2 Swap 10 | . 4 5 1 Drop 4 | . 3 1 . Fire 81 | 9 40 22 10 Melee . | . . . . Ram . | . . . . Kick . | . . . . Crush . | . . . . Escape Stasis . | . . . . Rewire . | . . . . Trap . | . . . . Miscellaneous . | . . . . Route ------- -11/Scrapyard -10/Materials (discovered 2 exits: [*Mat] / [*Sub]) -10/Subcaves -7/Recycling History --------- Turn | Location | Event 10 | -11/Scrapyard | Discovered new exit (range 16) 115 | -11/Scrapyard | Entered Materials 311 | -10/Materials | Build established: Mutant 330 | -10/Materials | Discovered new exit (range 16) 1012 | -10/Materials | Discovered new exit (range 7) 1199 | -10/Materials | Entered Subcaves 1252 | -10/Subcaves | Core integrity fell below 50% 1283 | -10/Subcaves | Discovered new exit (range 11) 1302 | -10/Subcaves | Core integrity fell below 20% 1330 | -10/Subcaves | Lost 3 parts (2p1n) 1409 | -10/Subcaves | Entered Recycling 1439 | -7/Recycling | Lost 3 parts (2n1u) 1810 | -7/Recycling | Destroyed by Y-54 Guardian with Flak Gun Last Messages --------------- 01475_ Acquired Med. Treads. 01568_ Acquired 96 matter. 01574_ Acquired 70 matter. 01685_ Connecting with Terminal... >>Trojan(Botnet) Trojan loaded successfully. Testing... Terminal linked with 0 systems. Awaiting botnet instructions. 01709_ Connecting with Recycling Unit... >>Recycling(Report) Matter reserves: 0 Inventory: Imp. Gravmag System (66%) Imp. Hacking Suite (20%) 01715_ Connecting with Terminal... 01769_ U-05 Engineer builds a Wall. 01808_ U-05 Engineer forms the Earth. 01808_ Y-54 Guardian springs to life. 01809_ U-05 Engineer forms the Earth. Map ----- +----------------------------------------------------+ | | | | | | | | | | | | | | | | | | | | | | | | | ?????????????????????????????????????????????????? | | ?????????????????????????????????????????????????? | | ?????????????????????????????????????????????????? | | ?????????????????????????????????????????????????? | | ?????????????????????????????????????????????????? | | ?????????????????????????????????????????????????? | | ?????????????????????????????????????????????????? | | ?????????????????????????????????????????????????? | | ?????????????????????????????????????????????????? | | ???????????#########?????????????????????????????? | | ???????????# #?????????????????????????????? | | ???????????# ########??????????????????????? | | ???????????# ## # # #??????????????????????? | | #????####### # # ##@#??????????????????????? | | ##???#"""""####+#########Y#??????????????????????? | | #??##""T""#### ######## ####????????????????????? | | ??# #????????????????????? | | #??# #????????????????????? | | #??# """ #####+###### #???????????????????? | | #??# """ + #? ???????????????????????? | | #??# """ # ""#? ??????????????????????? | | #??# # """ ""#? ??????????????????????? | | #??# + """ T"#? ??????????????????????? | | #??# ######## """ ""#? ??????????????????????? | | #??# #??????# ""#? ?????????????????????? | | #??# #??????# #?? ?????????????????????? | | #??# #??????# #?? ?????????????????????? | | ##### #########" "######?? ?????????????????????? | | #?#"Y"#???????#??????????????????????? | | ########### #?#"""#??????????????????????????????? | | ] #??# #?#####??????????????????????????????? | | #??# #????????????????????????????????????? | | ] #??# #????????????????????????????????????? | | % !!#### ### #??????????????????????????????? | | + #??????????????????????????????? | | ! ######## #??????????????????????????????? | | | #?????????????????????????????????????????? | | #?????????????????????????????????????????? | +----------------------------------------------------+ Best States ------------- Heat Dissipation 25 Energy Generation 15 Energy Capacity 150 Matter Stores 300 Matter Capacity 300 Sight Range 16 Terrain Scan Density 10 Armor Coverage 150 Resistance: TH 10 Evasion (%) 55 Recoil Reduction 1 Item Schematics ----------------- None Robot Schematics ------------------ None Fabricated ------------ Nothing Alien Tech Used ----------------- None Achievements -------------- None Challenges ------------ None Game ------ Seed PitchforkPhysicsChronowheel Manual? 0 Play Time 00:12:32 Cumulative 61.0 hours Start 2025.03.12 @ 08:36:38 End 2025.03.12 @ 08:48:36 Sessions 1 Manual Loads 0 Difficulty Rogue Special Mode None Game No. 85 Rogue 85 Adventurer 0 Explorer 0 Win Type - Total 1 Types 1/0/0/0/0/0/0/0/0 Lore% 27 Gallery% 41 Achievement% 37 Wizard Run 0 Options --------- Layout 1 ASCII 1 Keyboard 0 Movement Numpad Keybinds 0 Fullscreen 1 Font 48/Smallcaps Map View 76x35 Zoom Use 0% Tactical HUD 1 Map Filters NONE Filters NONE Steam 1 RUN: 2b023b9f-d90b-4983-9dbd-ac4a703b6fe5